fUSD/lending_fUSD_20260519
["ID","MTS","AMOUNT","RATE_DAILY","PERIOD"]
[422609479,1779150646000,-1628.3760407,0.00033639,7]
[422609485,1779150646000,-506.0,0.00033934,9]
[422609484,1779150646000,-2313.0,0.0003393,11]
[422609483,1779150646000,-2313.0,0.00033882,11]
[422609477,1779150646000,-2313.0,0.0003361,11]
[422609488,1779150646000,-150.0,0.00034051,30]
[422609500,1779150646000,-163.0,0.00034186,11]
[422609486,1779150646000,-5765.86,0.00034,2]
[422609490,1779150646000,-2313.0,0.00034089,11]
[422609498,1779150646000,-8669.70704305,0.0003418,2]
[422609491,1779150646000,-155.0,0.0003417,30]
[422609497,1779150646000,-157.0,0.00034173,30]
[422609492,1779150646000,-157.0,0.0003417,30]
[422609487,1779150646000,-3474.3,0.00034,2]
[422609499,1779150646000,-562.6,0.00034182,7]
[422609494,1779150646000,-159.0,0.00034173,30]
[422609493,1779150646000,-154.0,0.0003417,30]
[422609496,1779150646000,-496.0,0.00034173,30]
[422609495,1779150646000,-161.0,0.00034173,30]
[422609469,1779150646000,-5950.58,0.000332,14]
[422609489,1779150646000,-2313.0,0.00034089,11]
[422609468,1779150646000,-310.971875,0.000332,16]
[422609449,1779150646000,-1110.78697574,0.00033,30]
[422609465,1779150646000,-496.0,0.00033173,30]
[422609446,1779150646000,-164.99548644,0.00033,120]
[422609502,1779150646000,-1000.0,0.00034247,120]
[422609447,1779150646000,-1110.78697574,0.00033,30]
[422609448,1779150646000,-1110.78697574,0.00033,30]
[422609443,1779150646000,-415.84591649,0.00032877,2]
[422609445,1779150646000,-189.97120828,0.00033,120]
[422609444,1779150646000,-299.999999,0.00033,7]
[422609442,1779150646000,-500.0,0.00032877,2]
[422609450,1779150646000,-1110.78697574,0.00033,30]
[422609452,1779150646000,-1110.78697574,0.00033,30]
[422609454,1779150646000,-1110.78697574,0.00033,60]
[422609455,1779150646000,-1110.78697574,0.00033,60]
[422609456,1779150646000,-1000.0,0.0003301,8]
[422609467,1779150646000,-506.0,0.00033178,8]
[422609461,1779150646000,-157.0,0.0003317,30]
[422609453,1779150646000,-1110.78697574,0.00033,60]
[422609460,1779150646000,-155.0,0.0003317,30]
[422609457,1779150646000,-535.03,0.00033014,5]
[422609459,1779150646000,-306.187692,0.00033117,16]
[422609458,1779150646000,-298.533,0.00033095,16]
[422609463,1779150646000,-159.0,0.00033173,30]
[422609462,1779150646000,-154.0,0.0003317,30]
[422609471,1779150646000,-1000.0,0.00033225,4]
[422609472,1779150646000,-150.0,0.00033268,30]
[422609470,1779150646000,-1132.71,0.000332,7]
[422609473,1779150646000,-299.9,0.00033302,2]
[422609464,1779150646000,-161.0,0.00033173,30]
[422609466,1779150646000,-157.0,0.00033173,30]
[422609451,1779150646000,-1110.78697574,0.00033,30]
[422609503,1779150646000,-1000.0,0.00034247,120]
[422609512,1779150646000,-1586.0,0.0003436,11]
[422609505,1779150646000,-371.72013207,0.00034293,6]
[422609549,1779150646000,-496.0,0.00035173,30]
[422609537,1779150646000,-908.56951832,0.00035,13]
[422609548,1779150646000,-171.95204809,0.00035173,30]
[422609539,1779150646000,-1899.77204748,0.00035001,7]
[422609540,1779150646000,-2313.0,0.00035075,11]
[422609541,1779150646000,-2313.0,0.00035075,11]
[422609544,1779150646000,-1586.0,0.00035162,11]
[422609545,1779150646000,-156.0,0.0003517,30]
[422609542,1779150646000,-2313.0,0.00035118,11]
[422609543,1779150646000,-211.60966024,0.00035132,2]
[422609546,1779150646000,-157.0,0.0003517,30]
[422609547,1779150646000,-154.0,0.0003517,30]
[422609507,1779150646000,-236.85642791,0.00034293,6]
[422609538,1779150646000,-1062.3057219,0.00035001,2]
[422609554,1779150646000,-1500.0,0.000352,7]
[422609552,1779150646000,-1000.0,0.00035199,26]
[422609561,1779150646000,-4593.09868907,0.00035331,5]
[422609562,1779150646000,-7903.49171147,0.00035331,5]
[422609553,1779150646000,-310.971875,0.000352,26]
[422609558,1779150646000,-2313.0,0.00035272,11]
[422609559,1779150646000,-154.06086695,0.000353,30]
[422609556,1779150646000,-262.227851,0.00035253,21]
[422609551,1779150646000,-713.0,0.00035179,11]
[422609550,1779150646000,-157.0,0.00035173,30]
[422609560,1779150646000,-150.0,0.00035315,120]
[422609564,1779150646000,-506.0,0.00035444,11]
[422609563,1779150646000,-2313.0,0.00035395,11]
[422609565,1779150646000,-1501.7565449,0.000355,5]
[422609555,1779150646000,-1132.71,0.000352,7]
[422609535,1779150646000,-150.0,0.00035,2]
[422609557,1779150646000,-400.0,0.0003527,2]
[422609531,1779150646000,-400.0,0.0003497,2]
[422609530,1779150646000,-3996.51,0.00034949,2]
[422609504,1779150646000,-342.93003302,0.00034293,6]
[422609511,1779150646000,-1000.0,0.00034315,9]
[422609506,1779150646000,-236.85642791,0.00034293,6]
[422609501,1779150646000,-150.0,0.0003419,2]
[422609508,1779150646000,-200.0,0.00034293,6]
[422609509,1779150646000,-300.0,0.00034293,6]
[422609510,1779150646000,-1586.0,0.00034299,11]
[422609521,1779150646000,-2313.0,0.00034826,11]
[422609513,1779150646000,-1586.0,0.00034539,11]
[422609514,1779150646000,-173.366553,0.00034565,21]
[422609515,1779150646000,-1586.0,0.00034603,11]
[422609524,1779150646000,-1586.0,0.00034842,11]
[422609519,1779150646000,-163.0,0.00034798,11]
[422609520,1779150646000,-163.0,0.0003481,11]
[422609516,1779150646000,-506.0,0.00034689,10]
[422609523,1779150646000,-150.0,0.00034834,30]
[422609526,1779150646000,-1127.649704,0.00034904,21]
[422609532,1779150646000,-298.533,0.00034989,25]
[422609533,1779150646000,-1000.0,0.00034999,25]
[422609534,1779150646000,-5950.58,0.00035,14]
[422609529,1779150646000,-485.25,0.00034948,2]
[422609536,1779150646000,-900.0,0.00035,13]
[422609525,1779150646000,-1586.0,0.00034842,11]
[422609527,1779150646000,-500.0,0.00034948,2]
[422609518,1779150646000,-1500.0,0.00034795,2]
[422609522,1779150646000,-1586.0,0.00034826,11]
[422609517,1779150646000,-163.0,0.00034729,11]
[422609528,1779150646000,-610.98,0.00034948,2]
[422609610,1779150647000,-431.16038289,0.00036311,2]
[422609605,1779150647000,-506.0,0.00036199,11]
[422609600,1779150647000,-157.0,0.0003617,30]
[422609604,1779150647000,-1000.0,0.00036199,31]
[422609603,1779150647000,-157.0,0.00036173,30]
[422609602,1779150647000,-496.0,0.00036173,30]
[422609607,1779150647000,-25000.0,0.00036227,10]
[422609608,1779150647000,-25000.0,0.00036227,10]
[422609592,1779150647000,-245.19,0.00036,2]
[422609597,1779150647000,-727.88,0.0003613,2]
[422609609,1779150647000,-336.9729,0.00036272,2]
[422609601,1779150647000,-154.0,0.0003617,30]
[422609606,1779150647000,-1000.0,0.00036226,10]
[422609591,1779150647000,-150.0,0.00036,2]
[422609619,1779150647000,-300.0,0.0003638,2]
[422609613,1779150647000,-163.0,0.00036355,11]
[422609622,1779150647000,-1147.88995825,0.0003638,2]
[422609615,1779150647000,-162.9743891,0.00036356,30]
[422609614,1779150647000,-2313.0,0.00036355,11]
[422609618,1779150647000,-310.01860705,0.0003638,2]
[422609611,1779150647000,-2313.0,0.00036311,11]
[422609621,1779150647000,-300.0,0.0003638,2]
[422609620,1779150647000,-1913.5354076,0.0003638,2]
[422609617,1779150647000,-464.11796449,0.0003638,2]
[422609616,1779150647000,-300.0,0.0003638,2]
[422609623,1779150647000,-1566.54217295,0.0003638,2]
[422609625,1779150647000,-464.11796449,0.0003638,2]
[422609612,1779150647000,-2313.0,0.00036311,11]
[422609594,1779150647000,-500.0,0.0003613,2]
[422609626,1779150647000,-300.0,0.0003638,2]
[422609595,1779150647000,-500.0,0.0003613,2]
[422609634,1779150647000,-300.80777036,0.0003638,2]
[422609572,1779150647000,-940.0,0.00035616,10]
[422609566,1779150647000,-3632.0,0.00035506,2]
[422609568,1779150647000,-386.48,0.00035616,60]
[422609567,1779150647000,-150.0,0.00035616,30]
[422609570,1779150647000,-1000.0,0.00035616,10]
[422609569,1779150647000,-1000.0,0.00035616,120]
[422609573,1779150647000,-379.42,0.00035616,2]
[422609571,1779150647000,-1000.0,0.00035616,10]
[422609574,1779150647000,-156.34,0.00035616,120]
[422609575,1779150647000,-1000.0,0.0003562,11]
[422609585,1779150647000,-150.0,0.00036,2]
[422609576,1779150647000,-282.87579969,0.00035665,2]
[422609577,1779150647000,-406.15,0.00035701,7]
[422609580,1779150647000,-404.0,0.0003589,30]
[422609582,1779150647000,-1586.0,0.00035912,11]
[422609586,1779150647000,-150.0,0.00036,2]
[422609578,1779150647000,-400.91,0.000358,120]
[422609581,1779150647000,-150.0,0.00035899,2]
[422609584,1779150647000,-404.0,0.00036,30]
[422609579,1779150647000,-947.69,0.0003588,7]
[422609583,1779150647000,-156.04,0.00035975,120]
[422609588,1779150647000,-150.0,0.00036,2]
[422609587,1779150647000,-150.0,0.00036,2]
[422609598,1779150647000,-562.6,0.00036153,30]
[422609599,1779150647000,-4301.0,0.00036164,2]
[422609589,1779150647000,-150.0,0.00036,2]
[422609590,1779150647000,-150.0,0.00036,2]
[422609593,1779150647000,-598933.52579187,0.000361,2]
[422609596,1779150647000,-666.47,0.0003613,2]
[422609627,1779150647000,-452.16244065,0.0003638,2]
[422609641,1779150647000,-500.0,0.00036385,120]
[422609624,1779150647000,-301.05366791,0.0003638,2]
[422609673,1779150647000,-1000.0,0.00037389,7]
[422609663,1779150647000,-162.9743891,0.00037151,30]
[422609662,1779150647000,-2171.16805427,0.00037043,7]
[422609664,1779150647000,-162.97438914,0.00037151,30]
[422609666,1779150647000,-500.0,0.00037188,60]
[422609665,1779150647000,-336.9729,0.00037179,2]
[422609667,1779150647000,-1300.0,0.00037188,60]
[422609674,1779150647000,-1000.0,0.0003739,36]
[422609668,1779150647000,-434.84399284,0.00037188,60]
[422609669,1779150647000,-310.971875,0.000372,36]
[422609672,1779150647000,-162.9743891,0.0003737,30]
[422609671,1779150647000,-1586.0,0.00037232,11]
[422609676,1779150647000,-1132.71,0.000374,7]
[422609656,1779150647000,-306.187692,0.0003695,34]
[422609675,1779150647000,-404.0,0.00037397,30]
[422609687,1779150647000,-842.37,0.00037498,2]
[422609678,1779150647000,-1865.36488657,0.00037401,30]
[422609677,1779150647000,-358.51,0.000374,14]
[422609681,1779150647000,-8669.70704305,0.00037462,2]
[422609682,1779150647000,-1000.0,0.00037487,35]
[422609688,1779150647000,-842.37,0.00037498,2]
[422609680,1779150647000,-1510.65,0.00037452,14]
[422609686,1779150647000,-842.37,0.00037498,2]
[422609685,1779150647000,-633.27,0.00037498,7]
[422609684,1779150647000,-500.0,0.00037498,7]
[422609679,1779150647000,-1280.88388878,0.00037401,30]
[422609690,1779150647000,-842.37,0.00037498,2]
[422609632,1779150647000,-300.0,0.0003638,2]
[422609683,1779150647000,-151.0,0.00037496,14]
[422609658,1779150647000,-162.9743891,0.00036959,30]
[422609670,1779150647000,-1586.0,0.00037227,11]
[422609653,1779150647000,-1908.9,0.000369,120]
[422609654,1779150647000,-2313.0,0.00036922,11]
[422609631,1779150647000,-300.0,0.0003638,2]
[422609629,1779150647000,-300.0,0.0003638,2]
[422609630,1779150647000,-1095.40392062,0.0003638,2]
[422609628,1779150647000,-300.0,0.0003638,2]
[422609647,1779150647000,-162.9743891,0.00036767,30]
[422609636,1779150647000,-500.0,0.00036385,120]
[422609635,1779150647000,-430.6267673,0.00036385,120]
[422609646,1779150647000,-1586.0,0.00036631,11]
[422609638,1779150647000,-500.0,0.00036385,120]
[422609637,1779150647000,-500.0,0.00036385,120]
[422609643,1779150647000,-772.0604036,0.00036385,120]
[422609644,1779150647000,-5950.58,0.000364,14]
[422609639,1779150647000,-500.0,0.00036385,120]
[422609633,1779150647000,-492.9890159,0.0003638,2]
[422609648,1779150647000,-298.533,0.00036884,34]
[422609689,1779150647000,-842.37,0.00037498,2]
[422609659,1779150647000,-1000.0,0.00036986,120]
[422609657,1779150647000,-506.0,0.00036954,12]
[422609655,1779150647000,-1000.0,0.00036925,12]
[422609660,1779150647000,-50000.0,0.00037,30]
[422609661,1779150647000,-50000.0,0.00037,30]
[422609652,1779150647000,-3474.3,0.000369,2]
[422609651,1779150647000,-5765.86,0.000369,2]
[422609649,1779150647000,-151.0,0.00036886,14]
[422609645,1779150647000,-162.9743891,0.00036548,30]
[422609640,1779150647000,-843.8259427,0.00036385,120]
[422609642,1779150647000,-500.0,0.00036385,120]
[422609650,1779150647000,-427871.94770895,0.00036889,2]
[422609732,1779150648000,-1000.0,0.00037627,38]
[422609729,1779150648000,-5950.58,0.000376,14]
[422609737,1779150648000,-248.0,0.0003775,120]
[422609733,1779150648000,-2436.24652103,0.00037667,2]
[422609724,1779150648000,-150.0,0.00037555,30]
[422609730,1779150648000,-248.0,0.0003762,120]
[422609731,1779150648000,-248.0,0.0003762,120]
[422609739,1779150648000,-394.83,0.00037799,60]
[422609728,1779150648000,-394.83,0.00037599,60]
[422609727,1779150648000,-1000.0,0.00037578,13]
[422609726,1779150648000,-162.9743891,0.00037562,30]
[422609735,1779150648000,-394.83,0.00037699,60]
[422609736,1779150648000,-506.0,0.0003771,13]
[422609740,1779150648000,-200.79,0.000378,15]
[422609741,1779150648000,-2313.0,0.00037824,11]
[422609738,1779150648000,-162.9743891,0.00037753,30]
[422609742,1779150648000,-500.0,0.00037832,7]
[422609743,1779150648000,-500.0,0.00037832,7]
[422609746,1779150648000,-500.0,0.00037832,7]
[422609752,1779150648000,-500.0,0.00037832,7]
[422609744,1779150648000,-500.0,0.00037832,7]
[422609745,1779150648000,-500.0,0.00037832,7]
[422609750,1779150648000,-500.0,0.00037832,7]
[422609749,1779150648000,-500.0,0.00037832,7]
[422609748,1779150648000,-500.0,0.00037832,7]
[422609747,1779150648000,-500.0,0.00037832,7]
[422609751,1779150648000,-500.0,0.00037832,7]
[422609720,1779150648000,-151.0,0.00037555,7]
[422609734,1779150648000,-150.0,0.00037694,2]
[422609725,1779150648000,-294.169322,0.00037559,30]
[422609693,1779150648000,-2313.0,0.00037504,11]
[422609718,1779150648000,-151.0,0.00037555,7]
[422609753,1779150648000,-500.0,0.00037832,7]
[422609700,1779150648000,-151.0,0.00037555,7]
[422609699,1779150648000,-151.0,0.00037555,7]
[422609692,1779150648000,-248.0,0.000375,120]
[422609691,1779150648000,-842.56,0.00037498,2]
[422609701,1779150648000,-283.307346,0.00037555,7]
[422609695,1779150648000,-797.53523944,0.00037511,2]
[422609698,1779150648000,-151.0,0.00037555,7]
[422609696,1779150648000,-2313.0,0.00037552,11]
[422609694,1779150648000,-163.0,0.00037504,11]
[422609702,1779150648000,-500.0,0.00037555,2]
[422609704,1779150648000,-198.727669,0.00037555,2]
[422609705,1779150648000,-151.0,0.00037555,7]
[422609710,1779150648000,-227.904867,0.00037555,7]
[422609709,1779150648000,-151.0,0.00037555,7]
[422609708,1779150648000,-151.0,0.00037555,7]
[422609703,1779150648000,-500.0,0.00037555,2]
[422609707,1779150648000,-151.0,0.00037555,7]
[422609706,1779150648000,-151.0,0.00037555,7]
[422609711,1779150648000,-151.0,0.00037555,7]
[422609714,1779150648000,-227.904867,0.00037555,7]
[422609713,1779150648000,-151.0,0.00037555,7]
[422609712,1779150648000,-227.904867,0.00037555,7]
[422609716,1779150648000,-151.0,0.00037555,7]
[422609719,1779150648000,-151.0,0.00037555,7]
[422609715,1779150648000,-227.904867,0.00037555,7]
[422609717,1779150648000,-151.0,0.00037555,7]
[422609722,1779150648000,-1166022.2663,0.00037555,30]
[422609723,1779150648000,-266.74502178,0.00037555,31]
[422609721,1779150648000,-151.0,0.00037555,7]
[422609755,1779150648000,-500.0,0.00037832,7]
[422609697,1779150648000,-151.0,0.00037555,7]
[422609762,1779150648000,-500.0,0.00037832,7]
[422609783,1779150648000,-1235.18214925,0.00037998,30]
[422609784,1779150648000,-1000.0,0.00037998,39]
[422609801,1779150648000,-5800.0,0.00038152,2]
[422609794,1779150648000,-1000.0,0.00038099,33]
[422609798,1779150648000,-562.6,0.00038125,30]
[422609796,1779150648000,-381.86389899,0.000381,33]
[422609805,1779150648000,-5800.0,0.00038169,2]
[422609793,1779150648000,-336.9729,0.00038086,2]
[422609806,1779150648000,-5800.0,0.00038177,2]
[422609795,1779150648000,-394.83,0.00038099,60]
[422609797,1779150648000,-1000.0,0.00038121,40]
[422609807,1779150648000,-1734.62772924,0.00038199,30]
[422609799,1779150648000,-5800.0,0.00038143,2]
[422609803,1779150648000,-5800.0,0.0003816,2]
[422609809,1779150648000,-394.83,0.00038199,60]
[422609812,1779150648000,-183.12589069,0.000382,30]
[422609820,1779150648000,-1000.0,0.00038231,14]
[422609814,1779150648000,-877.73010136,0.000382,30]
[422609817,1779150648000,-152.0,0.00038208,30]
[422609813,1779150648000,-183.12589069,0.000382,30]
[422609822,1779150648000,-152.0,0.00038257,30]
[422609808,1779150648000,-1191.11104075,0.00038199,30]
[422609815,1779150648000,-877.73010135,0.000382,30]
[422609818,1779150648000,-1530.7660243,0.00038218,2]
[422609756,1779150648000,-500.0,0.00037832,7]
[422609821,1779150648000,-248.0,0.0003825,120]
[422609811,1779150648000,-3474.3,0.000382,2]
[422609816,1779150648000,-877.73010135,0.000382,30]
[422609819,1779150648000,-1590.226,0.00038224,51]
[422609789,1779150648000,-248.0,0.00038,120]
[422609790,1779150648000,-500.0,0.0003801,60]
[422609810,1779150648000,-5765.86,0.000382,2]
[422609780,1779150648000,-1908.9,0.000379,120]
[422609786,1779150648000,-10000.0,0.00038,60]
[422609765,1779150648000,-500.0,0.00037832,7]
[422609760,1779150648000,-500.0,0.00037832,7]
[422609757,1779150648000,-500.0,0.00037832,7]
[422609754,1779150648000,-500.0,0.00037832,7]
[422609761,1779150648000,-500.0,0.00037832,7]
[422609758,1779150648000,-500.0,0.00037832,7]
[422609764,1779150648000,-500.0,0.00037832,7]
[422609759,1779150648000,-500.0,0.00037832,7]
[422609767,1779150648000,-500.0,0.00037832,7]
[422609777,1779150648000,-610.82,0.00037832,7]
[422609778,1779150648000,-457.7318441,0.00037845,2]
[422609779,1779150648000,-394.83,0.00037899,60]
[422609776,1779150648000,-481.73,0.00037832,7]
[422609772,1779150648000,-500.0,0.00037832,7]
[422609763,1779150648000,-500.0,0.00037832,7]
[422609770,1779150648000,-500.0,0.00037832,7]
[422609769,1779150648000,-500.0,0.00037832,7]
[422609785,1779150648000,-394.83,0.00037999,60]
[422609787,1779150648000,-152.0,0.00038,120]
[422609791,1779150648000,-1300.0,0.0003801,60]
[422609788,1779150648000,-157.0,0.00038,120]
[422609782,1779150648000,-1798.80895522,0.00037998,30]
[422609781,1779150648000,-162.9743891,0.00037973,30]
[422609773,1779150648000,-500.0,0.00037832,7]
[422609774,1779150648000,-500.0,0.00037832,7]
[422609768,1779150648000,-500.0,0.00037832,7]
[422609775,1779150648000,-500.0,0.00037832,7]
[422609792,1779150648000,-1000.0,0.00038081,48]
[422609766,1779150648000,-500.0,0.00037832,7]
[422609771,1779150648000,-500.0,0.00037832,7]
[422609881,1779150649000,-1436.81,0.00038356,2]
[422609874,1779150649000,-1436.81,0.00038356,2]
[422609866,1779150649000,-1436.81,0.00038356,2]
[422609868,1779150649000,-1436.81,0.00038356,2]
[422609880,1779150649000,-1436.81,0.00038356,2]
[422609879,1779150649000,-1436.81,0.00038356,2]
[422609884,1779150649000,-1436.81,0.00038356,2]
[422609889,1779150649000,-500.0,0.00038356,2]
[422609882,1779150649000,-1436.81,0.00038356,2]
[422609883,1779150649000,-1436.81,0.00038356,2]
[422609870,1779150649000,-1436.81,0.00038356,2]
[422609872,1779150649000,-1436.81,0.00038356,2]
[422609891,1779150649000,-500.0,0.00038356,2]
[422609887,1779150649000,-1436.82815674,0.00038356,2]
[422609886,1779150649000,-1436.81,0.00038356,2]
[422609885,1779150649000,-1436.81,0.00038356,2]
[422609893,1779150649000,-500.0,0.00038356,2]
[422609890,1779150649000,-500.0,0.00038356,2]
[422609894,1779150649000,-500.0,0.00038356,2]
[422609892,1779150649000,-500.0,0.00038356,2]
[422609906,1779150649000,-500.0,0.00038356,2]
[422609901,1779150649000,-500.0,0.00038356,2]
[422609896,1779150649000,-500.0,0.00038356,2]
[422609878,1779150649000,-1436.81,0.00038356,2]
[422609888,1779150649000,-500.0,0.00038356,2]
[422609877,1779150649000,-1436.81,0.00038356,2]
[422609846,1779150649000,-500.0,0.00038356,2]
[422609875,1779150649000,-1436.81,0.00038356,2]
[422609832,1779150649000,-500.0,0.00038356,120]
[422609829,1779150649000,-1148.61238259,0.00038355,30]
[422609833,1779150649000,-500.0,0.00038356,2]
[422609826,1779150649000,-1551.5,0.00038329,120]
[422609831,1779150649000,-500.0,0.00038356,120]
[422609824,1779150649000,-1576.266908,0.000383,28]
[422609823,1779150649000,-394.83,0.00038299,60]
[422609825,1779150649000,-1551.5,0.00038329,120]
[422609827,1779150649000,-1000.0,0.0003833,5]
[422609828,1779150649000,-1672.7364795,0.00038355,30]
[422609830,1779150649000,-1000.0,0.00038355,15]
[422609836,1779150649000,-500.0,0.00038356,2]
[422609848,1779150649000,-185.9572058,0.00038356,2]
[422609838,1779150649000,-500.0,0.00038356,2]
[422609834,1779150649000,-500.0,0.00038356,2]
[422609840,1779150649000,-500.0,0.00038356,2]
[422609844,1779150649000,-500.0,0.00038356,2]
[422609835,1779150649000,-500.0,0.00038356,2]
[422609842,1779150649000,-500.0,0.00038356,2]
[422609853,1779150649000,-1436.81,0.00038356,2]
[422609850,1779150649000,-1436.81,0.00038356,2]
[422609855,1779150649000,-1436.81,0.00038356,2]
[422609858,1779150649000,-1436.81,0.00038356,2]
[422609860,1779150649000,-1436.81,0.00038356,2]
[422609862,1779150649000,-1436.81,0.00038356,2]
[422609864,1779150649000,-1436.81,0.00038356,2]
[422609902,1779150649000,-500.0,0.00038356,2]
[422609905,1779150649000,-500.0,0.00038356,2]
[422609897,1779150649000,-500.0,0.00038356,2]
[422609931,1779150649000,-1000.0,0.00038415,90]
[422609930,1779150649000,-1000.0,0.00038414,90]
[422609933,1779150649000,-351.17215,0.0003844,102]
[422609934,1779150649000,-351.17215,0.0003844,102]
[422609936,1779150649000,-351.17215,0.0003844,102]
[422609935,1779150649000,-351.17216,0.0003844,102]
[422609944,1779150649000,-5950.58,0.000385,14]
[422609937,1779150649000,-506.0,0.00038465,14]
[422609939,1779150649000,-151.0,0.0003849,30]
[422609940,1779150649000,-7183.91,0.0003849,2]
[422609942,1779150649000,-394.83,0.00038499,120]
[422609938,1779150649000,-1000.0,0.00038477,90]
[422609943,1779150649000,-152.0,0.000385,120]
[422609946,1779150649000,-1000.0,0.00038501,90]
[422609945,1779150649000,-251.88029157,0.000385,120]
[422609948,1779150649000,-1000.0,0.00038504,90]
[422609949,1779150649000,-3632.0,0.00038506,2]
[422609947,1779150649000,-1000.0,0.00038503,90]
[422609950,1779150649000,-1586.0,0.00038512,11]
[422609951,1779150649000,-2313.0,0.00038512,11]
[422609952,1779150649000,-1000.0,0.0003852,90]
[422609954,1779150649000,-152.207691,0.00038529,30]
[422609955,1779150649000,-1282.501218,0.00038529,30]
[422609953,1779150649000,-1000.0,0.00038529,90]
[422609895,1779150649000,-500.0,0.00038356,2]
[422609928,1779150649000,-394.83,0.00038399,120]
[422609926,1779150649000,-500.0,0.00038395,120]
[422609941,1779150649000,-1000.0,0.00038499,3]
[422609927,1779150649000,-772.0604036,0.00038395,120]
[422609900,1779150649000,-500.0,0.00038356,2]
[422609929,1779150649000,-1000.0,0.00038413,90]
[422609898,1779150649000,-500.0,0.00038356,2]
[422609907,1779150649000,-500.0,0.00038356,2]
[422609899,1779150649000,-500.0,0.00038356,2]
[422609903,1779150649000,-500.0,0.00038356,2]
[422609904,1779150649000,-500.0,0.00038356,2]
[422609913,1779150649000,-591.79093982,0.00038356,15]
[422609918,1779150649000,-500.0,0.00038395,120]
[422609915,1779150649000,-1000.0,0.00038359,105]
[422609911,1779150649000,-209.03329085,0.00038356,2]
[422609908,1779150649000,-500.0,0.00038356,2]
[422609916,1779150649000,-357.01510371,0.00038361,2]
[422609919,1779150649000,-500.0,0.00038395,120]
[422609914,1779150649000,-1000.0,0.00038356,120]
[422609932,1779150649000,-778.68452605,0.00038429,90]
[422609922,1779150649000,-171.8920961,0.00038395,120]
[422609923,1779150649000,-843.8259427,0.00038395,120]
[422609924,1779150649000,-162.1132023,0.00038395,120]
[422609920,1779150649000,-500.0,0.00038395,120]
[422609925,1779150649000,-500.0,0.00038395,120]
[422609917,1779150649000,-430.6267672,0.00038395,120]
[422609909,1779150649000,-500.0,0.00038356,2]
[422609910,1779150649000,-277.68009203,0.00038356,2]
[422609921,1779150649000,-500.0,0.00038395,120]
[422609912,1779150649000,-591.79093982,0.00038356,15]
[422609997,1779150650000,-1613.0535,0.00038798,30]
[422609995,1779150650000,-298.533,0.00038779,43]
[422610005,1779150650000,-153.0,0.000388,30]
[422609996,1779150650000,-1000.0,0.00038779,90]
[422610006,1779150650000,-200.0,0.000388,16]
[422609989,1779150650000,-5000.0,0.00038732,2]
[422609991,1779150650000,-300.0,0.0003877,2]
[422609988,1779150650000,-862.66504213,0.00038719,90]
[422609986,1779150650000,-151.0,0.0003871,30]
[422609985,1779150650000,-151.0,0.0003871,30]
[422609998,1779150650000,-1107.63007,0.00038798,30]
[422609990,1779150650000,-1000.0,0.0003876,90]
[422609999,1779150650000,-1555.5,0.00038799,30]
[422610017,1779150650000,-1000.0,0.0003883,2]
[422610003,1779150650000,-1000.0,0.00038799,43]
[422610004,1779150650000,-394.83,0.00038799,120]
[422610012,1779150650000,-1000.0,0.00038815,90]